bitfinex/quotes_BTCUSD_20260126
["timestamp","ask_amount","ask_price","bid_price","bid_amount"]
[1769400597759,0.01143719,87434.0,87424.0,0.09647111]
[1769400598249,0.01143706,87435.0,87424.0,0.09647111]
[1769400598459,0.01143719,87434.0,87424.0,0.09647111]
[1769400598856,0.01143706,87435.0,87424.0,0.09647111]
[1769400599193,0.00014018,87438.0,87424.0,0.09647111]
[1769400599194,0.01157685,87438.0,87424.0,0.09647111]
[1769400599401,0.01143693,87436.0,87424.0,0.09647111]
[1769400600496,0.01143706,87435.0,87424.0,0.09647111]
[1769400600820,0.00014018,87438.0,87424.0,0.09647111]
[1769400601035,0.0114368,87437.0,87424.0,0.09647111]
[1769400601242,0.0114368,87437.0,87425.0,0.60940404]
[1769400601457,0.01157685,87438.0,87420.0,0.51489605]
[1769400601458,0.00014018,87438.0,87426.0,0.09647111]
[1769400601674,0.0002024,87452.0,87429.0,0.09647111]
[1769400601891,0.00026121,87452.0,87441.0,0.09647111]
[1769400602107,0.00026121,87452.0,87440.0,1.12430009]
[1769400602108,0.0002,87463.0,87444.0,0.60940404]
[1769400602309,0.0002,87463.0,87445.0,0.70587515]
[1769400602510,0.01143366,87461.0,87445.0,0.70593396]
[1769400602713,0.01143419,87457.0,87445.0,0.70593396]
[1769400602927,0.01143392,87459.0,87445.0,0.70593396]
[1769400602928,0.01143432,87456.0,87445.0,0.70593396]
[1769400603152,0.00994119,87445.0,87439.0,0.60940404]
[1769400603352,5.879e-05,87445.0,87438.0,0.09647111]
[1769400604485,5.879e-05,87445.0,87430.0,0.63453204]
[1769400604781,5.879e-05,87445.0,87416.0,0.01143955]
[1769400604782,0.01143602,87443.0,87422.0,0.0002024]
[1769400604994,0.51489605,87440.0,87424.0,0.09710425]
[1769400605199,0.01143641,87440.0,87424.0,0.65740905]
[1769400605403,0.01143654,87439.0,87425.0,0.09710425]
[1769400605834,0.65612828,87442.0,87425.0,0.09710425]
[1769400606051,0.01143615,87442.0,87425.0,0.63453204]
[1769400606252,0.01143602,87443.0,87428.0,0.09710425]
[1769400606413,0.01143615,87442.0,87429.0,0.09710425]
[1769400606818,0.01143615,87442.0,87429.0,0.73163629]
[1769400607062,5.879e-05,87445.0,87430.0,0.51489605]
[1769400607267,5.879e-05,87445.0,87442.0,0.61111084]
[1769400607497,5.879e-05,87445.0,87437.0,0.63453204]
[1769400607712,5.879e-05,87445.0,87437.0,0.73163629]
[1769400608274,5.879e-05,87445.0,87438.0,0.09710425]
[1769400608475,5.879e-05,87445.0,87430.0,0.52633377]
[1769400608476,5.879e-05,87445.0,87439.0,0.73163629]
[1769400610783,1e-08,87458.0,87440.0,0.09710425]
[1769400610968,1e-08,87458.0,87441.0,0.73163629]
[1769400611104,1e-08,87458.0,87441.0,0.73169508]
[1769400611910,0.65612632,87457.0,87441.0,0.73169508]
[1769400612133,0.64469213,87457.0,87441.0,0.73169508]
[1769400612814,0.64469213,87457.0,87442.0,0.0228723]
[1769400613043,0.01143458,87454.0,87441.0,0.09716304]
[1769400613242,0.01143445,87455.0,87441.0,0.09716304]
[1769400613467,0.01143458,87454.0,87441.0,0.09716304]
[1769400614142,0.01143445,87455.0,87441.0,0.09716304]
[1769400614446,0.01143406,87458.0,87444.0,0.09710425]
[1769400614640,0.01143406,87458.0,87445.0,0.73163629]
[1769400614906,0.01143419,87457.0,87445.0,0.09710425]
[1769400615112,0.01143445,87455.0,87441.0,5.879e-05]
[1769400615317,0.01143432,87456.0,87441.0,5.879e-05]
[1769400615719,0.01143458,87454.0,87441.0,5.879e-05]
[1769400615996,0.01143445,87455.0,87441.0,5.879e-05]
[1769400616366,0.01143458,87454.0,87441.0,5.879e-05]
[1769400616566,0.01143445,87455.0,87441.0,5.879e-05]
[1769400616930,0.01143432,87456.0,87441.0,5.879e-05]
[1769400617276,0.01143419,87457.0,87442.0,0.63517719]
[1769400617480,0.6407323,87458.0,87443.0,0.02287204]
[1769400617631,1e-08,87458.0,87443.0,0.02287204]
[1769400618030,0.01143406,87458.0,87443.0,0.02287204]
[1769400618428,1e-08,87458.0,87443.0,0.02287204]
[1769400618651,0.01143406,87458.0,87443.0,0.02287204]
[1769400618859,1e-08,87458.0,87443.0,0.02287204]
[1769400619282,1e-08,87458.0,87443.0,0.11239393]
[1769400619478,1e-08,87458.0,87443.0,0.74757112]
[1769400619798,1e-08,87458.0,87443.0,0.72469908]
[1769400620065,1e-08,87458.0,87444.0,0.65681468]
[1769400620284,1e-08,87458.0,87446.0,0.08952189]
[1769400620611,1e-08,87458.0,87447.0,0.02079711]
[1769400622105,1e-08,87458.0,87447.0,0.6559743]
[1769400622343,0.17592,87471.0,87449.0,0.63517719]
[1769400622538,0.52632854,87470.0,87452.0,0.09114028]
[1769400623032,0.0002,87471.0,87453.0,0.63517719]
[1769400623237,0.01143275,87468.0,87455.0,0.63517719]
[1769400623442,0.01143275,87468.0,87454.0,0.09114028]
[1769400623443,0.01143288,87467.0,87454.0,0.09114028]
[1769400623675,0.01143301,87466.0,87454.0,0.09114028]
[1769400623821,0.01143288,87467.0,87454.0,0.09114028]
[1769400624224,0.01143301,87466.0,87454.0,0.09114028]
[1769400625246,0.52632854,87470.0,87455.0,0.63517719]
[1769400625453,0.52632854,87470.0,87455.0,0.72631747]
[1769400625973,0.01143275,87468.0,87455.0,0.72631747]
[1769400626399,0.01143262,87469.0,87455.0,0.72631747]
[1769400627300,0.01143275,87468.0,87455.0,0.72631747]
[1769400627520,0.0002,87471.0,87456.0,0.08952189]
[1769400627770,0.01143249,87470.0,87457.0,0.08952189]
[1769400627978,0.01143262,87469.0,87457.0,0.08952189]
[1769400628391,0.51489605,87470.0,87459.0,0.08952189]
[1769400628603,0.01163236,87471.0,87459.0,0.63517719]
[1769400628809,0.01163236,87471.0,87460.0,0.08952189]
[1769400629016,0.0002,87471.0,87460.0,0.08952189]
[1769400629190,0.01163236,87471.0,87460.0,0.08952189]
[1769400629702,0.0002,87471.0,87460.0,0.08952189]
[1769400630092,0.0001056,87476.0,87460.0,0.08952189]
[1769400630303,0.0001056,87476.0,87461.0,0.72469908]
[1769400630656,0.0001056,87476.0,87461.0,0.08952189]
[1769400631636,0.01143131,87479.0,87461.0,0.08952189]
[1769400632504,0.52546266,87480.0,87461.0,0.08952189]
[1769400632704,0.01143131,87479.0,87461.0,0.08952189]
[1769400632937,0.01143092,87482.0,87461.0,0.08952189]
[1769400633154,0.05715217,87486.0,87460.0,0.02286759]
[1769400633155,0.01143053,87485.0,87465.0,0.08952189]
[1769400633360,0.01143013,87488.0,87468.0,0.61334077]
[1769400633571,0.1255146,87487.0,87472.0,0.61334077]
[1769400633777,0.1255146,87487.0,87473.0,0.10108017]
[1769400633778,0.01143026,87487.0,87473.0,0.10108017]
[1769400633978,0.52590005,87490.0,87475.0,0.10108017]
[1769400633979,0.01186857,87490.0,87475.0,0.10108017]
[1769400634186,0.52590005,87490.0,87477.0,0.10108017]
[1769400634394,0.01143,87489.0,87478.0,0.10108017]
[1769400634603,0.00046752,87489.0,87478.0,0.10108017]
[1769400634815,0.00046752,87489.0,87481.0,0.71442094]
[1769400635030,0.00046752,87489.0,87481.0,0.10108017]
[1769400635447,0.01189752,87489.0,87481.0,0.10108017]
[1769400635644,0.00046752,87489.0,87481.0,0.10108017]
[1769400635850,0.01189752,87489.0,87474.0,0.61334077]
[1769400636058,0.01143013,87488.0,87475.0,0.10108017]
[1769400636232,0.01189752,87489.0,87475.0,0.71442094]
[1769400636639,0.01143013,87488.0,87475.0,0.71442094]
[1769400636871,0.01143026,87487.0,87475.0,0.71442094]
[1769400637078,0.01143053,87485.0,87475.0,0.71442094]
[1769400637493,0.01143013,87488.0,87475.0,0.71442094]
[1769400637706,0.00046752,87489.0,87475.0,0.71442094]
[1769400638075,0.00046752,87489.0,87476.0,0.71442094]
[1769400638275,0.01143013,87488.0,87476.0,0.71442094]
[1769400638465,0.00046752,87489.0,87476.0,0.71442094]
[1769400639126,0.01189752,87489.0,87476.0,0.71442094]
[1769400639736,0.00046752,87489.0,87476.0,0.71442094]
[1769400639935,0.01189752,87489.0,87476.0,0.71442094]
[1769400640198,0.00046752,87489.0,87476.0,0.71442094]
[1769400640426,0.17568,87495.0,87470.0,0.51403148]
[1769400640634,0.00014014,87495.0,87474.0,0.62477273]
[1769400640814,0.00014014,87495.0,87477.0,0.10108017]
[1769400641042,0.00014014,87495.0,87479.0,0.71442094]
[1769400642105,0.00014014,87495.0,87480.0,0.10108017]
[1769400643453,0.00014014,87495.0,87481.0,0.10108017]
[1769400644089,0.00014014,87495.0,87484.0,0.61334077]
[1769400650166,0.00014014,87495.0,87485.0,0.02286106]
[1769400651098,0.01156936,87495.0,87485.0,0.02286106]
[1769400651387,0.00014014,87495.0,87483.0,0.10108017]
[1769400651550,0.00014014,87495.0,87480.0,0.02286236]
[1769400651713,0.01156936,87495.0,87480.0,0.02286236]
[1769400651926,0.01156936,87495.0,87480.0,0.12394253]
[1769400652350,0.51403148,87490.0,87480.0,0.02286236]
[1769400652522,0.51403148,87490.0,87462.0,0.01143353]
[1769400652523,0.73700862,87489.0,87472.0,0.10108017]
[1769400652727,0.05715179,87487.0,87455.0,0.01167315]
[1769400652912,0.01143066,87484.0,87464.0,0.10108017]
[1769400653110,0.0912663,87486.0,87469.0,0.10108017]
[1769400653111,0.1026967,87486.0,87469.0,0.10108017]
[1769400653312,0.01143013,87488.0,87471.0,0.10108017]
[1769400653542,0.01143,87489.0,87473.0,0.71442094]
[1769400653737,0.01143,87489.0,87474.0,0.02286393]
[1769400653938,0.01143013,87488.0,87474.0,0.02286393]
[1769400654226,0.01143,87489.0,87475.0,0.10108017]
[1769400654426,0.01143013,87488.0,87476.0,0.02286341]
[1769400654712,0.0114304,87486.0,87476.0,0.02286341]
[1769400654938,0.0114304,87486.0,87475.0,0.71442094]
[1769400655513,0.01143053,87485.0,87475.0,0.71442094]
[1769400655689,0.01143053,87485.0,87462.0,0.10108017]
[1769400655892,0.01143053,87485.0,87465.0,0.10108017]
[1769400656093,0.0114304,87486.0,87467.0,0.61334077]
[1769400656304,0.01143053,87485.0,87471.0,0.10108017]
[1769400656548,0.01143066,87484.0,87471.0,0.10108017]
[1769400656767,0.01143066,87484.0,87455.0,0.01167315]
[1769400656768,0.01143196,87474.0,87457.0,0.10108017]
[1769400656917,0.63431232,87473.0,87457.0,0.10108017]
[1769400657410,0.01143131,87479.0,87458.0,0.61334077]
[1769400657648,0.01143144,87478.0,87461.0,0.10108017]
[1769400657822,0.63431232,87480.0,87462.0,0.63601551]
[1769400658034,0.63431232,87480.0,87462.0,0.61334077]
[1769400658472,0.63431232,87480.0,87463.0,0.02286681]
[1769400658680,0.64574363,87479.0,87463.0,0.02286681]
[1769400658857,0.63431232,87479.0,87463.0,0.02286681]
[1769400660579,0.63431232,87479.0,87462.0,0.02286707]
[1769400660796,0.64574363,87479.0,87462.0,0.12394724]
[1769400661623,0.63431232,87479.0,87462.0,0.12394724]
[1769400663245,0.64574363,87479.0,87462.0,0.12394724]
[1769400663853,0.63431232,87479.0,87462.0,0.12394724]
[1769400663987,0.64574363,87479.0,87462.0,0.12394724]
[1769400664187,0.01143144,87478.0,87462.0,0.12394724]
[1769400664385,0.01143249,87470.0,87455.0,0.0002387]
[1769400664631,0.01143275,87468.0,87455.0,0.0002387]
[1769400664854,0.63471856,87465.0,87455.0,0.0002387]
[1769400665062,0.0114334,87463.0,87455.0,0.0002387]
[1769400665344,0.6461517,87465.0,87455.0,0.0002387]
[1769400665541,0.01143327,87464.0,87455.0,0.0002387]
[1769400665785,0.6461517,87465.0,87455.0,0.0002387]
[1769400666059,0.6461517,87465.0,87455.0,0.00070622]
[1769400666358,0.01143327,87464.0,87455.0,0.00070622]
[1769400666589,0.6461517,87465.0,87455.0,0.00070622]
[1769400667623,0.63471856,87465.0,87455.0,0.00070622]
[1769400667831,0.10320499,87479.0,87455.0,0.00070622]
[1769400668041,0.01143144,87478.0,87459.0,0.10346884]
[1769400668212,0.73792355,87479.0,87460.0,0.7965518]
[1769400668380,0.73792355,87479.0,87461.0,0.10346884]
[1769400668584,0.73792355,87479.0,87462.0,0.02286707]
[1769400668789,0.74935486,87479.0,87462.0,0.02286707]
[1769400669010,0.01143157,87477.0,87462.0,0.02286707]
[1769400669224,0.73792355,87479.0,87462.0,0.02286707]
[1769400669428,0.10320499,87479.0,87463.0,0.77368421]
[1769400669634,0.01142935,87494.0,87472.0,0.67021537]
[1769400669949,0.63471856,87496.0,87476.0,0.10346884]
[1769400670146,0.1140419,87495.0,87479.0,0.67021537]
[1769400670372,0.10320499,87497.0,87480.0,0.10346884]
[1769400670558,0.11463395,87497.0,87480.0,0.10346884]
[1769400670756,0.01142935,87494.0,87480.0,0.10346884]
[1769400671162,0.63471856,87493.0,87480.0,0.10346884]
[1769400671572,0.63471856,87493.0,87473.0,0.67021537]
[1769400671573,0.0114287,87499.0,87481.0,0.67021537]
[1769400671777,0.01142883,87498.0,87481.0,0.77368421]
[1769400672194,0.64614739,87498.0,87481.0,0.77368421]
[1769400672398,0.63471856,87498.0,87481.0,0.77368421]
[1769400674011,0.64614739,87498.0,87481.0,0.77368421]
[1769400674450,0.52546005,87500.0,87483.0,0.67021537]
[1769400674664,0.52546005,87500.0,87484.0,0.10346884]
[1769400675071,0.0114287,87499.0,87484.0,0.10346884]
[1769400675265,0.52546005,87500.0,87484.0,0.10346884]
[1769400675666,0.52560021,87500.0,87484.0,0.10346884]
[1769400678456,0.69577684,87498.0,87484.0,0.10346884]
[1769400679412,0.68434801,87498.0,87484.0,0.10346884]
[1769400680808,0.00014016,87500.0,87484.0,0.10346884]
[1769400682047,0.01142883,87498.0,87484.0,0.10346884]
[1769400682291,0.0114287,87499.0,87484.0,0.10346884]
[1769400682642,0.01142883,87498.0,87484.0,0.10346884]
[1769400683045,0.0114287,87499.0,87484.0,0.10346884]
[1769400683912,0.69591674,87500.0,87484.0,0.10346884]
[1769400684138,0.68448817,87500.0,87484.0,0.10346884]
[1769400684331,0.0114287,87499.0,87484.0,0.10346884]
[1769400684533,0.69591674,87500.0,87484.0,0.10346884]
[1769400684759,0.69591674,87500.0,87485.0,0.09721181]
[1769400685156,0.68448817,87500.0,87485.0,0.09721181]
[1769400685367,0.68469937,87500.0,87485.0,0.09721181]
[1769400687825,0.68469937,87500.0,87485.0,0.11917487]
[1769400688228,0.00035136,87500.0,87485.0,0.65973578]
[1769400688361,0.00035136,87500.0,87486.0,0.09721181]
[1769400689771,0.01177993,87500.0,87486.0,0.09721181]
[1769400692315,0.01177993,87500.0,87486.0,0.10683556]
[1769400692529,0.00035136,87500.0,87488.0,0.09721181]
[1769400694215,0.01177993,87500.0,87488.0,0.09721181]
[1769400694629,0.00035136,87500.0,87488.0,0.09721181]
[1769400697221,0.01177993,87500.0,87488.0,0.09721181]
[1769400697412,0.62015769,87499.0,87488.0,0.09721181]
[1769400697601,0.00035136,87500.0,87488.0,0.09721181]
[1769400698608,0.01177993,87500.0,87488.0,0.09721181]
[1769400698760,0.00035136,87500.0,87488.0,0.09721181]
[1769400700984,0.0114287,87499.0,87488.0,0.09721181]
[1769400701183,0.00035136,87500.0,87488.0,0.09721181]
[1769400701184,0.01177993,87500.0,87488.0,0.09721181]
[1769400701727,0.04871024,87498.0,87465.0,0.63650711]
[1769400701935,0.62015769,87493.0,87475.0,0.63650711]
[1769400702142,0.01142935,87494.0,87477.0,0.09236602]
[1769400702480,0.01164042,87495.0,87480.0,0.09236602]
[1769400702638,0.01164042,87495.0,87481.0,0.09236602]
[1769400702639,0.0002112,87495.0,87481.0,0.09236602]
[1769400702841,0.01164042,87495.0,87482.0,0.02286184]
[1769400703051,0.0002112,87495.0,87482.0,0.09236602]
[1769400703261,0.0002112,87495.0,87483.0,0.1152276]
[1769400704465,0.0002112,87495.0,87484.0,0.63650711]
[1769400704644,0.0002112,87495.0,87485.0,0.11522707]
[1769400719791,0.01142935,87494.0,87485.0,0.11522707]
[1769400719999,0.01142948,87493.0,87485.0,0.11522707]
[1769400720239,0.01142935,87494.0,87485.0,0.11522707]
[1769400720452,0.01164042,87495.0,87485.0,0.11522707]
[1769400720659,0.01142948,87493.0,87485.0,0.11522707]
[1769400720892,0.01164042,87495.0,87485.0,0.11522707]
[1769400721798,0.0002112,87495.0,87485.0,0.11522707]
[1769400724335,0.01164042,87495.0,87485.0,0.11522707]
[1769400724535,0.01142935,87494.0,87485.0,0.11522707]
[1769400724682,0.01164042,87495.0,87485.0,0.11522707]
[1769400724860,0.01142961,87492.0,87478.0,0.08630937]
[1769400725265,0.01142974,87491.0,87478.0,0.08630937]
[1769400725515,0.01142961,87492.0,87478.0,0.08630937]
[1769400725953,0.01142961,87492.0,87479.0,0.10917199]
[1769400726112,0.01142948,87493.0,87479.0,0.10917199]
[1769400726414,0.01142948,87493.0,87480.0,0.08630937]
[1769400726707,0.01142961,87492.0,87480.0,0.08630937]
[1769400726915,0.01142974,87491.0,87480.0,0.08630937]
[1769400728318,0.01143144,87478.0,87468.0,0.08630937]
[1769400728518,0.01143118,87480.0,87468.0,0.08630937]
[1769400728784,0.09816885,87487.0,87470.0,0.60721206]
[1769400728995,0.09816885,87487.0,87471.0,0.10917409]
[1769400729227,0.08673859,87487.0,87471.0,0.10917409]
[1769400729490,0.01143,87489.0,87472.0,0.08630937]
[1769400729683,0.01142987,87490.0,87473.0,0.02286419]
[1769400729920,0.01142974,87491.0,87473.0,0.02286419]
[1769400730146,0.01142974,87491.0,87473.0,0.10917356]
[1769400731200,0.01142987,87490.0,87473.0,0.10917356]
[1769400731405,0.01143026,87487.0,87473.0,0.10917356]
[1769400731631,0.01143,87489.0,87473.0,0.08630937]
[1769400731989,0.01142974,87491.0,87474.0,0.01952174]
[1769400732378,0.01142961,87492.0,87474.0,0.01952174]
[1769400732563,0.01142961,87492.0,87473.0,0.09294105]
[1769400732762,0.01142961,87492.0,87475.0,0.09294105]
[1769400733004,0.01142974,87491.0,87475.0,0.09294105]
[1769400733232,0.01142987,87490.0,87475.0,0.09294105]
[1769400733419,0.00999999,87475.0,87467.0,0.0001845]
[1769400733962,0.01143196,87474.0,87467.0,0.0001845]
[1769400734315,0.6101491,87476.0,87467.0,0.0001845]
[1769400734518,0.62157989,87483.0,87467.0,0.0001845]
[1769400734721,0.62157989,87483.0,87467.0,0.09242486]
[1769400734900,0.01143092,87482.0,87468.0,0.60721206]
[1769400735079,0.01143105,87481.0,87469.0,0.09224036]
[1769400735479,0.01143118,87480.0,87469.0,0.09224036]
[1769400735880,0.01143131,87479.0,87469.0,0.09224036]
[1769400736087,0.01143118,87480.0,87469.0,0.09224036]
[1769400736423,0.01143105,87481.0,87469.0,0.09224036]
[1769400736634,0.62157989,87483.0,87469.0,0.09224036]
[1769400737035,0.01143092,87482.0,87469.0,0.09224036]
[1769400737240,0.01143013,87488.0,87472.0,0.08968296]
[1769400737444,0.01143,87489.0,87470.0,0.53470229]
[1769400737445,0.01143,87489.0,87474.0,0.62149107]
[1769400737645,0.01143,87489.0,87475.0,0.08968296]
[1769400737881,0.01143,87489.0,87476.0,0.08968296]
[1769400738052,0.01143013,87488.0,87476.0,0.08968296]
[1769400738296,0.01143013,87488.0,87476.0,0.00897447]
[1769400738497,0.01143026,87487.0,87476.0,0.00897447]
[1769400738705,0.01143,87489.0,87476.0,0.00897447]
[1769400738874,0.01143013,87488.0,87476.0,0.00897447]
[1769400739719,0.01143026,87487.0,87476.0,0.00897447]
[1769400740126,0.01143013,87488.0,87476.0,0.00897447]
[1769400740345,1.88508837,87498.0,87477.0,0.62149107]
[1769400740565,1.5796153,87498.0,87480.0,0.08952591]
[1769400740790,1.5796153,87498.0,87484.0,0.08952591]
[1769400740973,1.5796153,87498.0,87486.0,0.62149107]
[1769400741203,1.5796153,87498.0,87487.0,0.08952591]
[1769400746101,1.5796153,87498.0,87488.0,0.08952591]
[1769400746863,0.0002,87501.0,87488.0,0.08952591]
[1769400751479,0.0002,87501.0,87491.0,0.62149107]
[1769400751699,0.0002,87501.0,87491.0,0.71101698]
[1769400751825,0.0002,87501.0,87491.0,0.08952591]
[1769400752048,0.01156873,87500.0,87482.0,0.08952591]
[1769400752326,0.01142896,87497.0,87482.0,0.08952591]
[1769400752529,0.01142896,87497.0,87483.0,0.71101698]
[1769400753240,0.01142909,87496.0,87483.0,0.71101698]
[1769400753686,0.01142896,87497.0,87483.0,0.71101698]
[1769400753857,0.01142883,87498.0,87483.0,0.71101698]
[1769400754923,0.01142896,87497.0,87483.0,0.71101698]
[1769400755244,0.01142909,87496.0,87483.0,0.71101698]
[1769400755422,0.01142896,87497.0,87483.0,0.71101698]
[1769400756213,0.01156873,87500.0,87483.0,0.71101698]
[1769400756402,0.01156873,87500.0,87484.0,0.09979846]
[1769400756519,0.01156873,87500.0,87484.0,0.7959538]
[1769400757951,0.0114287,87499.0,87484.0,0.7959538]
[1769400759015,0.0114287,87499.0,87485.0,0.09979846]
[1769400759222,0.00014016,87500.0,87486.0,0.8188146]
[1769400759428,0.00014016,87500.0,87486.0,0.7959538]
[1769400759561,0.00014016,87500.0,87487.0,0.09979846]
[1769400759789,0.00014016,87500.0,87480.0,0.51365017]
[1769400759790,0.00014016,87500.0,87489.0,0.69615534]
[1769400760181,0.00014016,87500.0,87490.0,0.02285975]
[1769400760640,0.00014016,87500.0,87490.0,0.81881355]
[1769400760958,0.00014016,87500.0,87490.0,0.7959538]
[1769400761121,0.00014016,87500.0,87491.0,0.02285949]
[1769400761866,0.01014026,87500.0,87490.0,0.7959538]
[1769400762642,0.02156883,87500.0,87490.0,0.7959538]
[1769400762856,0.0114287,87499.0,87490.0,0.7959538]
[1769400763244,0.0100001,87498.0,87472.0,0.01143222]
[1769400763456,0.0100001,87498.0,87475.0,0.69615534]
[1769400763641,0.0100001,87498.0,87477.0,0.69615534]
[1769400763642,0.02142893,87498.0,87477.0,0.69615534]
[1769400763832,0.02142893,87498.0,87479.0,0.69615534]
[1769400764031,0.02142893,87498.0,87482.0,0.09979846]
[1769400764250,0.0100001,87498.0,87484.0,0.09979846]
[1769400764452,0.0100001,87498.0,87485.0,0.7959538]
[1769400764654,0.0100001,87499.0,87485.0,0.7959538]
[1769400765625,0.01014026,87500.0,87485.0,0.69615534]
[1769400765829,0.01014026,87500.0,87487.0,0.69615534]
[1769400768103,0.0114287,87499.0,87487.0,0.69615534]
[1769400768309,0.0100001,87498.0,87487.0,0.69615534]
[1769400768690,0.0100001,87499.0,87487.0,0.69615534]
[1769400769442,0.01014026,87500.0,87488.0,0.01742319]
[1769400769853,0.01014026,87500.0,87487.0,0.69615534]
[1769400770324,0.11439916,87499.0,87487.0,0.69615534]
[1769400770544,0.0100001,87498.0,87489.0,0.69615534]
[1769400770738,0.01014026,87500.0,87490.0,0.01742279]
[1769400770887,0.11439959,87499.0,87490.0,0.01742279]
[1769400771124,0.0100001,87498.0,87489.0,0.7959538]
[1769400771326,0.01014026,87500.0,87489.0,0.69615534]
[1769400771529,0.00014016,87500.0,87492.0,0.09979846]
[1769400771752,0.00014016,87500.0,87492.0,0.7959538]
[1769400772151,0.00014016,87500.0,87492.0,0.69615534]
[1769400772368,0.00014016,87500.0,87494.0,0.7959538]
[1769400772912,0.00014016,87500.0,87494.0,0.09979846]
[1769400773419,0.00014016,87500.0,87490.0,0.69615534]
[1769400773640,0.00014016,87500.0,87490.0,0.7959538]
[1769400782689,0.00014016,87500.0,87491.0,0.09979846]
[1769400783712,0.00014016,87500.0,87491.0,0.77249636]
[1769400784419,0.00014016,87500.0,87491.0,0.77241905]
[1769400789700,0.00014016,87500.0,87492.0,0.10370932]
[1769400789878,0.00014016,87500.0,87492.0,0.77640722]
[1769400791409,0.00014016,87500.0,87493.0,0.10370932]
[1769400791613,0.00014016,87500.0,87494.0,0.01786064]
[1769400792195,0.00014016,87500.0,87493.0,0.77640722]
[1769400793018,0.00014016,87500.0,87494.0,0.01671769]
[1769400795825,0.00014016,87500.0,87495.0,0.10370932]
[1769400796062,0.00014016,87500.0,87498.0,0.13336697]
[1769400796300,0.00014016,87500.0,87499.0,0.77611698]
[1769400800828,0.00014016,87500.0,87499.0,0.10289442]
[1769400801454,0.00014016,87500.0,87480.0,0.51365017]
[1769400801693,0.00014016,87500.0,87481.0,0.1756]
[1769400801903,0.62946961,87497.0,87481.0,0.1756]
[1769400802112,0.73552321,87497.0,87481.0,0.1756]
[1769400802640,0.1060536,87497.0,87480.0,0.11663476]
[1769400802863,0.62946961,87496.0,87480.0,0.11663476]
[1769400803908,0.01142922,87495.0,87480.0,0.11663476]
[1769400804117,0.62946961,87492.0,87478.0,0.1756]
[1769400804759,0.73552321,87492.0,87474.0,0.29223476]
[1769400805396,0.73552321,87492.0,87475.0,0.01344143]
[1769400805601,0.73552321,87492.0,87474.0,0.29223476]
[1769400806218,0.00014016,87500.0,87480.0,0.51365017]
[1769400806424,0.62946961,87497.0,87481.0,0.0134405]
[1769400806637,0.00014016,87500.0,87497.0,0.01]
[1769400806841,0.00014016,87500.0,87498.0,0.01458077]
[1769400807046,0.0002,87501.0,87499.0,0.11663476]
[1769400807253,0.00024666,87501.0,87493.0,0.11663476]
[1769400807459,0.00024666,87501.0,87494.0,0.01459502]
[1769400807851,0.00024666,87501.0,87495.0,0.69027468]
[1769400808054,0.00024666,87501.0,87497.0,0.11663476]
[1769400808263,0.00024666,87501.0,87499.0,0.11663476]
[1769400808607,0.00024666,87501.0,87500.0,0.13343217]
[1769400812367,0.0029234,87517.0,87502.0,0.69027468]
[1769400812685,0.0029234,87517.0,87504.0,0.11663476]
[1769400813938,0.0029234,87517.0,87504.0,0.1280628]
[1769400814139,0.0029234,87517.0,87504.0,0.11663476]
[1769400814352,0.0029234,87517.0,87504.0,0.1280628]
[1769400814773,0.0029234,87517.0,87504.0,0.01142804]
[1769400814983,7.38e-05,87511.0,87505.0,0.01142791]
[1769400815186,7.38e-05,87511.0,87507.0,0.19458778]
[1769400815571,7.38e-05,87511.0,87509.0,0.24259541]
[1769400815777,0.15154043,87509.0,87500.0,0.51336598]
[1769400816001,0.15154043,87507.0,87500.0,0.51336598]
[1769400816201,0.76066704,87508.0,87500.0,0.51336598]
[1769400816590,7.38e-05,87511.0,87500.0,0.51336598]
[1769400816792,0.76066704,87508.0,87501.0,0.01671116]
[1769400817023,0.90530871,87508.0,87500.0,0.51336598]
[1769400819392,7.38e-05,87511.0,87501.0,0.18991911]
[1769400819805,0.0029234,87517.0,87501.0,0.18991911]
[1769400819806,0.73969699,87517.0,87505.0,0.51336598]
[1769400819975,0.73969699,87517.0,87506.0,0.01435828]
[1769400820620,0.0029234,87517.0,87506.0,0.01435828]
[1769400822363,0.00300343,87517.0,87506.0,0.01435828]
[1769400824928,0.73677359,87514.0,87506.0,0.01435828]
[1769400825159,0.86188704,87514.0,87505.0,0.51336598]
[1769400825701,0.86188704,87514.0,87506.0,0.17556]
[1769400827813,0.73677359,87514.0,87506.0,0.17556]
[1769400828061,0.73677359,87514.0,87505.0,0.51336598]
[1769400828260,0.73677359,87514.0,87507.0,0.17556]
[1769400829447,0.73677359,87514.0,87508.0,0.01463084]
[1769400829652,0.00300343,87517.0,87508.0,0.01463084]
[1769400830247,0.00233011,87517.0,87508.0,0.01463084]
[1769400832318,0.73677359,87516.0,87508.0,0.01463084]
[1769400833511,0.73677359,87516.0,87507.0,0.17556]
[1769400840084,0.73677359,87516.0,87508.0,0.014585]
[1769400840648,0.00233011,87517.0,87508.0,0.014585]
[1769400841077,0.0001476,87520.0,87518.0,0.00766988]
[1769400841253,0.0001476,87520.0,87518.0,0.00751409]
[1769400841465,0.0001476,87520.0,87511.0,0.0145845]
[1769400855943,0.0001,87522.0,87511.0,0.0145845]
[1769400855944,0.0001,87522.0,87512.0,0.01374752]
[1769400856125,0.0001476,87529.0,87520.0,0.0001476]
[1769400856357,0.0001476,87529.0,87521.0,0.17556]
[1769400856999,0.0001476,87529.0,87519.0,0.51336598]
[1769400857000,0.97527806,87528.0,87519.0,0.51336598]
[1769400857185,0.82593596,87526.0,87519.0,0.51336598]
[1769400857984,0.82607276,87526.0,87519.0,0.51336598]
[1769400858158,0.82607276,87526.0,87508.0,0.15261357]
[1769400858408,0.82593596,87522.0,87510.0,0.51336598]
[1769400858618,0.82593596,87522.0,87511.0,0.0139549]
[1769400859461,0.82593596,87522.0,87512.0,0.17556]
[1769400860122,0.82593596,87522.0,87511.0,0.0139549]
[1769400860324,0.82593596,87522.0,87512.0,0.17552]
[1769400861382,0.82593596,87522.0,87511.0,0.0139549]
[1769400861581,0.0001368,87525.0,87512.0,0.17552]
[1769400861582,0.82593596,87520.0,87512.0,0.17552]
[1769400861793,0.97527806,87520.0,87512.0,0.17552]
[1769400862208,0.1493421,87520.0,87512.0,0.17552]
[1769400862363,0.1493421,87520.0,87513.0,0.01224689]
[1769400862742,0.1493421,87520.0,87512.0,0.17552]
[1769400863092,0.1493421,87520.0,87510.0,0.51336598]
[1769400863731,0.82593596,87523.0,87510.0,0.51336598]
[1769400863926,0.82593596,87523.0,87511.0,0.0133898]
[1769400864334,0.82593596,87523.0,87510.0,0.51336598]
[1769400865744,0.82593596,87523.0,87511.0,0.0133898]
[1769400866985,0.97527806,87523.0,87511.0,0.0133898]
[1769400867602,0.1493421,87522.0,87510.0,0.17552]
[1769400867808,0.97527806,87521.0,87510.0,0.17552]
[1769400868533,0.1493421,87520.0,87510.0,0.17552]
[1769400868743,0.82593596,87519.0,87508.0,8.003e-05]
[1769400868944,0.1493421,87509.0,87479.0,0.2154198]
[1769400869167,0.82593596,87506.0,87492.0,0.00021986]
[1769400869390,0.01142726,87510.0,87483.0,0.20197652]
[1769400869391,0.82593596,87502.0,87485.0,0.01487039]
[1769400869592,0.01142726,87510.0,87474.0,0.01158696]